fUST/lending_fUST_20250726
["ID","MTS","AMOUNT","RATE_DAILY","PERIOD"]
[375124326,1753535453183,-1056.07,0.00022463,2]
[375124327,1753535453192,-460.0,0.00022463,2]
[375124328,1753535453202,-5014.67,0.00022463,2]
[375124329,1753535453212,-507.61,0.00022463,2]
[375124330,1753535453223,-1225.36,0.00022463,2]
[375124331,1753535453233,-1748.22,0.00022463,2]
[375124332,1753535453243,-3082.33,0.00022463,2]
[375124333,1753535453253,-460.0,0.00022464,2]
[375124334,1753535453263,-1065.56,0.00022464,2]
[375124335,1753535453273,-460.0,0.00022464,2]
[375124336,1753535453283,-1505.2,0.00022464,2]
[375124337,1753535453293,-2131.83,0.00022464,2]
[375124338,1753535453303,-460.0,0.00022464,2]
[375124339,1753535453313,-829.15,0.00022464,2]
[375124340,1753535453323,-1514.66,0.00022464,2]
[375124341,1753535453333,-2640.4,0.00022464,2]
[375124342,1753535453343,-460.0,0.00022465,2]
[375124343,1753535453352,-1849.74,0.00022465,2]
[375124344,1753535453362,-460.0,0.00022465,2]
[375124345,1753535453372,-460.0,0.00022465,2]
[375124346,1753535453382,-472.65,0.00022465,2]
[375124347,1753535453391,-2088.78,0.00022465,2]
[375124348,1753535453401,-460.0,0.00022465,2]
[375124350,1753535453411,-460.0,0.00022465,2]
[375124352,1753535453422,-309.27,0.000225,2]
[375124354,1753535453431,-3000.0,0.00022512,2]
[375124356,1753535453441,-279.21918617,0.00022521,2]
[375124358,1753535453451,-300.0,0.00022521,2]
[375124360,1753535453461,-250.0,0.00022576,2]
[375124362,1753535453470,-1000.0,0.000226,2]
[375124364,1753535453480,-192.02,0.00022635,4]
[375124366,1753535453489,-160.86,0.00022635,4]
[375124368,1753535453499,-361.0,0.00022647,2]
[375124370,1753535453508,-151.0,0.00022657,7]
[375124372,1753535453518,-240.4,0.00022681,5]
[375124374,1753535453528,-5898.85,0.00022733,2]
[375124376,1753535453538,-460.0,0.00022733,2]
[375124378,1753535453548,-460.0,0.00022733,2]
[375124380,1753535453558,-460.0,0.00022733,2]
[375124382,1753535453568,-654.15,0.00022734,2]
[375124384,1753535453578,-460.0,0.00022734,2]
[375124386,1753535453588,-2404.1,0.00022734,2]
[375124388,1753535453597,-460.0,0.00022734,2]
[375124390,1753535453607,-1400.9,0.00022734,2]
[375124392,1753535453617,-659.55,0.00022734,2]
[375124394,1753535453627,-574.94,0.00022734,2]
[375124396,1753535453637,-820.48,0.00022734,2]
[375124398,1753535453646,-2915.78,0.00022735,2]
[375124400,1753535453656,-460.0,0.00022735,2]
[375124402,1753535453666,-460.0,0.00022735,2]
[375124410,1753535453734,-460.0,0.00022735,2]
[375124412,1753535453744,-647.44,0.00022735,2]
[375124414,1753535453754,-512.48422645,0.00022735,2]
[375124416,1753535453765,-976.91,0.00022735,2]
[375124417,1753535453774,-468.85943743,0.00022735,2]
[375124419,1753535453785,-460.0,0.00022735,2]
[375124422,1753535453797,-594.16,0.00022735,2]
[375124424,1753535453809,-549.7,0.00022736,2]
[375124425,1753535453821,-460.0,0.00022736,2]
[375124427,1753535453831,-663.51,0.00022736,2]
[375124429,1753535453842,-460.0,0.00022736,2]
[375124431,1753535453851,-460.0,0.00022736,2]
[375124433,1753535453861,-651.27,0.00022736,2]
[375124435,1753535453871,-453.26988914,0.00022736,2]
[375124437,1753535453881,-522.78,0.00022736,2]
[375124439,1753535453890,-460.0,0.00022736,2]
[375124441,1753535453900,-460.0,0.00022737,2]
[375124443,1753535453909,-460.0,0.00022737,2]
[375124445,1753535453919,-460.0,0.00022737,2]
[375124447,1753535453928,-460.0,0.00022737,2]
[375124449,1753535453937,-609.67,0.00022737,2]
[375124451,1753535453946,-460.0,0.00022737,2]
[375124453,1753535453956,-295.71,0.00022737,2]
[375124455,1753535453966,-460.0,0.00022737,2]
[375124457,1753535453975,-588.79,0.00022737,2]
[375124459,1753535453985,-460.0,0.00022737,2]
[375124461,1753535453994,-587.19,0.00022737,2]
[375124463,1753535454004,-1056.07,0.00022737,2]
[375124465,1753535454014,-151.0,0.00022737,7]
[375124467,1753535454023,-460.0,0.00022737,2]
[375124469,1753535454033,-5014.67,0.00022737,2]
[375124471,1753535454043,-507.61,0.00022737,2]
[375124473,1753535454053,-1225.36,0.00022737,2]
[375124475,1753535454063,-1748.22,0.00022737,2]
[375124477,1753535454074,-3082.33,0.00022737,2]
[375124479,1753535454083,-250.426663,0.00022738,7]
[375124481,1753535454093,-151.0,0.00022738,7]
[375124483,1753535454102,-460.0,0.00022738,2]
[375124485,1753535454112,-1065.56,0.00022738,2]
[375124487,1753535454121,-460.0,0.00022738,2]
[375124489,1753535454131,-1505.2,0.00022738,2]
[375124491,1753535454140,-2131.83,0.00022738,2]
[375124493,1753535454149,-460.0,0.00022738,2]
[375124495,1753535454158,-829.15,0.00022738,2]
[375124497,1753535454167,-1514.66,0.00022738,2]
[375124499,1753535454176,-2640.4,0.00022738,2]
[375124501,1753535454186,-547.317722,0.00022738,7]
[375124503,1753535454201,-547.317722,0.00022738,7]
[375124506,1753535454222,-460.0,0.00022739,2]
[375124510,1753535454241,-460.0,0.00022739,2]
[375124513,1753535454263,-460.0,0.00022739,2]
[375124516,1753535454284,-472.65,0.00022739,2]
[375124519,1753535454300,-2088.78,0.00022739,2]
[375124522,1753535454319,-460.0,0.00022739,2]
[375124524,1753535454334,-460.0,0.00022739,2]
[375124527,1753535454351,-800.0,0.00022741,2]
[375124530,1753535454372,-361.0,0.00022765,2]
[375124533,1753535454389,-429.9056391,0.00022767,2]
[375124536,1753535454403,-429.9056391,0.00022767,2]
[375124538,1753535454423,-429.9056391,0.00022767,2]
[375124541,1753535454438,-429.4387834,0.00022767,2]
[375124543,1753535454453,-560.0,0.00022771,2]
[375124546,1753535454469,-361.0,0.00022776,2]
[375124548,1753535454482,-566.46,0.00022893,6]
[375124551,1753535454497,-746.34,0.00022905,2]
[375124553,1753535454511,-361.0,0.00022909,2]
[375124556,1753535454525,-309.27,0.00022919,2]
[375124558,1753535454540,-629.06,0.00022925,6]
[375124561,1753535454554,-566.46,0.00022993,2]
[375124563,1753535454568,-151.0,0.00023,8]
[375124566,1753535454583,-160.0,0.00023,2]
[375124568,1753535454597,-231.25662632,0.00023,3]
[375124571,1753535454611,-178.0,0.00023,7]
[375124573,1753535454626,-169.0,0.00023,7]
[375124576,1753535454641,-840.57612966,0.00023,3]
[375124578,1753535454655,-215.9757969,0.00023,3]
[375124581,1753535454669,-202.306236,0.00023005,7]
[375124583,1753535454684,-202.306236,0.00023005,7]
[375124586,1753535454699,-746.35,0.00023005,4]
[375124588,1753535454714,-5898.85,0.00023007,2]
[375124591,1753535454728,-460.0,0.00023007,2]
[375124593,1753535454742,-460.0,0.00023007,2]
[375124596,1753535454758,-460.0,0.00023007,2]
[375124598,1753535454772,-654.15,0.00023008,2]
[375124601,1753535454788,-460.0,0.00023008,2]
[375124604,1753535454804,-2404.1,0.00023008,2]
[375124606,1753535454819,-460.0,0.00023008,2]
[375124609,1753535454834,-1400.9,0.00023008,2]
[375124611,1753535454850,-659.55,0.00023008,2]
[375124614,1753535454865,-574.94,0.00023008,2]
[375124616,1753535454881,-820.48,0.00023008,2]
[375124619,1753535454896,-2915.78,0.00023009,2]
[375124622,1753535454912,-460.0,0.00023009,2]
[375124632,1753535455008,-460.0,0.00023009,2]
[375124634,1753535455018,-460.0,0.00023009,2]
[375124636,1753535455027,-647.44,0.00023009,2]
[375124639,1753535455038,-976.91,0.00023009,2]
[375124640,1753535455048,-460.0,0.00023009,2]
[375124642,1753535455057,-594.16,0.00023009,2]
[375124644,1753535455067,-549.7,0.0002301,2]
[375124646,1753535455077,-460.0,0.0002301,2]
[375124648,1753535455087,-663.51,0.0002301,2]
[375124650,1753535455096,-460.0,0.0002301,2]
[375124652,1753535455105,-460.0,0.0002301,2]
[375124654,1753535455115,-651.27,0.0002301,2]
[375124656,1753535455125,-522.78,0.0002301,2]
[375124659,1753535455135,-460.0,0.0002301,2]
[375124660,1753535455144,-241.87670541,0.00023011,2]
[375124662,1753535455154,-508.9425177,0.00023011,2]
[375124664,1753535455163,-460.0,0.00023011,2]
[375124667,1753535455172,-609.67,0.00023011,2]
[375124668,1753535455182,-460.0,0.00023011,2]
[375124670,1753535455191,-460.0,0.00023011,2]
[375124672,1753535455201,-588.79,0.00023011,2]
[375124674,1753535455210,-460.0,0.00023011,2]
[375124676,1753535455220,-587.19,0.00023011,2]
[375124679,1753535455230,-1056.07,0.00023011,2]
[375124680,1753535455239,-460.0,0.00023011,2]
[375124682,1753535455248,-5014.67,0.00023011,2]
[375124684,1753535455258,-507.61,0.00023011,2]
[375124686,1753535455267,-1748.22,0.00023011,2]
[375124688,1753535455277,-3082.33,0.00023011,2]
[375124690,1753535455286,-521.62,0.00023012,2]
[375124692,1753535455296,-1065.56,0.00023012,2]
[375124694,1753535455305,-477.38760462,0.00023012,2]
[375124696,1753535455315,-1505.2,0.00023012,2]
[375124698,1753535455324,-2131.83,0.00023012,2]
[375124700,1753535455333,-460.0,0.00023012,2]
[375124702,1753535455343,-829.15,0.00023012,2]
[375124704,1753535455352,-1514.66,0.00023012,2]
[375124706,1753535455362,-2640.4,0.00023012,2]
[375124708,1753535455371,-151.0,0.00023013,7]
[375124710,1753535455380,-151.0,0.00023013,7]
[375124712,1753535455390,-460.0,0.00023013,2]
[375124714,1753535455399,-151.0,0.00023013,7]
[375124716,1753535455408,-460.0,0.00023013,2]
[375124718,1753535455419,-460.0,0.00023013,2]
[375124720,1753535455429,-472.65,0.00023013,2]
[375124722,1753535455439,-2088.78,0.00023013,2]
[375124724,1753535455449,-460.0,0.00023013,2]
[375124726,1753535455458,-460.0,0.00023013,2]
[375124728,1753535455467,-151.0,0.00023014,2]
[375124730,1753535455477,-678.0,0.00023014,2]
[375124732,1753535455486,-151.0,0.00023014,2]
[375124734,1753535455496,-151.0,0.00023014,2]
[375124736,1753535455505,-151.0,0.00023014,2]
[375124738,1753535455514,-151.0,0.00023014,2]
[375124740,1753535455524,-151.0,0.00023014,2]
[375124742,1753535455533,-151.0,0.00023014,2]
[375124744,1753535455543,-248.21941893,0.00023014,2]
[375124746,1753535455552,-151.0,0.00023014,2]
[375124748,1753535455561,-151.0,0.00023014,2]
[375124750,1753535455570,-540.0,0.00023014,2]
[375124752,1753535455580,-151.0,0.00023014,2]
[375124754,1753535455589,-151.0,0.00023014,2]
[375124756,1753535455600,-151.0,0.00023014,2]
[375124758,1753535455609,-151.0,0.00023014,2]
[375124760,1753535455618,-151.0,0.00023014,2]
[375124762,1753535455628,-151.0,0.00023014,2]
[375124764,1753535455637,-151.0,0.00023014,2]
[375124766,1753535455646,-151.0,0.00023014,2]
[375124768,1753535455656,-151.00525167,0.00023014,2]
[375124770,1753535455665,-151.0,0.00023014,2]
[375124772,1753535455675,-300.48934009,0.00023014,2]
[375124774,1753535455684,-151.0,0.00023014,2]
[375124776,1753535455693,-151.0,0.00023014,2]
[375124778,1753535455702,-151.0,0.00023014,2]
[375124780,1753535455712,-151.0,0.00023014,2]
[375124782,1753535455721,-800.0,0.0002302,2]
[375124784,1753535455731,-629.06,0.00023025,4]
[375124785,1753535455740,-240.4,0.00023038,6]
[375124786,1753535455749,-3500.0,0.0002306,2]
[375124787,1753535455758,-301.62993289,0.00023068,2]
[375124788,1753535455767,-1000.0,0.000231,2]
[375124789,1753535455776,-629.06,0.00023125,4]
[375124790,1753535455785,-319.9714731,0.00023178,2]
[375124791,1753535455794,-154.2133676,0.00023178,2]
[375124792,1753535455803,-307.6429418,0.00023178,2]
[375124793,1753535455813,-577.8715194,0.00023178,2]
[375124794,1753535455822,-577.8715194,0.00023178,2]
[375124796,1753535455830,-577.8715194,0.00023178,2]
[375124798,1753535455840,-418.5864154,0.00023178,2]
[375124800,1753535455849,-318.2074684,0.00023178,2]
[375124802,1753535455858,-356.3491356,0.00023178,2]
[375124804,1753535455868,-1155.7430388,0.00023178,2]
[375124806,1753535455879,-2209.65173461,0.000232,7]
[375124848,1753535456279,-5000.0,0.00018985,2]
[375124851,1753535456289,-1270.78875051,0.0001925,2]
[375124853,1753535456298,-601.30163582,0.00019443,2]
[375124854,1753535456308,-500.0,0.00019443,2]
[375124856,1753535456317,-179.69528467,0.00019443,2]
[375124859,1753535456327,-187.93761447,0.00019443,2]
[375124861,1753535456337,-500.0,0.00019443,2]
[375124863,1753535456347,-460.0,0.00019447,2]
[375124865,1753535456356,-617.3,0.00019447,2]
[375124867,1753535456366,-460.0,0.00019447,2]
[375124869,1753535456375,-460.0,0.00019721,2]
[375124871,1753535456384,-617.3,0.00019721,2]
[375124873,1753535456394,-540.25462415,0.00019721,2]
[375124875,1753535456404,-400.6297758,0.00019995,2]
[375124877,1753535456424,-216.6702242,0.00019995,2]
[375124879,1753535456434,-460.0,0.00019996,2]
[375124881,1753535456443,-151.0,0.00019999,2]
[375124883,1753535456453,-1270.78875051,0.00020154,2]
[375124885,1753535456465,-617.3,0.00020269,2]
[375124887,1753535456474,-617.3,0.00020543,2]
[375124889,1753535456484,-617.3,0.00020817,2]
[375124892,1753535456495,-617.3,0.00021091,2]
[375124893,1753535456504,-617.3,0.00021365,2]
[375124895,1753535456514,-617.3,0.00021639,2]
[375124897,1753535456524,-617.3,0.00021913,2]
[375124900,1753535456535,-617.3,0.00022187,2]
[375124902,1753535456545,-617.3,0.00022461,2]
[375124903,1753535456554,-617.3,0.00022735,2]
[375124906,1753535456566,-617.3,0.00023009,2]
[375124908,1753535456576,-387.62826539,0.000232,7]
[375124909,1753535456589,-447.763606,0.000232,7]
[375124912,1753535456599,-447.763606,0.000232,7]
[375124914,1753535456609,-12629.83479014,0.000232,7]
[375124915,1753535456619,-476.98041219,0.000232,7]
[375124918,1753535456629,-312.16666667,0.000232,7]
[375124919,1753535456638,-299.96499188,0.00023203,2]
[375124922,1753535456648,-4000.0,0.00023209,4]
[375124924,1753535456659,-409.0,0.00023253,2]
[375124926,1753535456668,-12500.0,0.00023255,7]
[375124928,1753535456678,-151.0,0.00023255,7]
[375124930,1753535456687,-151.0,0.00023255,7]
[375124932,1753535456698,-151.0,0.00023255,7]
[375124934,1753535456707,-547.317722,0.00023255,7]
[375124936,1753535456717,-547.317716,0.00023255,7]
[375124938,1753535456727,-151.0,0.0002326,7]
[375124940,1753535456737,-151.0,0.0002326,7]
[375124942,1753535456747,-151.0,0.0002326,7]
[375124944,1753535456757,-12500.0,0.00023264,7]
[375124945,1753535456766,-5898.85,0.00023281,2]
[375124948,1753535456776,-460.0,0.00023281,2]
[375124950,1753535456786,-460.0,0.00023281,2]
[375124951,1753535456795,-460.0,0.00023281,2]
[375124954,1753535456806,-654.15,0.00023282,2]
[375124956,1753535456815,-460.0,0.00023282,2]
[375124958,1753535456825,-2404.1,0.00023282,2]
[375124960,1753535456834,-460.0,0.00023282,2]
[375124962,1753535456844,-1400.9,0.00023282,2]
[375124964,1753535456853,-659.55,0.00023282,2]
[375124966,1753535456863,-574.94,0.00023282,2]
[375124968,1753535456874,-820.48,0.00023282,2]
[375124970,1753535456884,-2915.78,0.00023283,2]
[375124972,1753535456893,-460.0,0.00023283,2]
[375124974,1753535456904,-460.0,0.00023283,2]
[375124976,1753535456913,-460.0,0.00023283,2]
[375124978,1753535456923,-647.44,0.00023283,2]
[375124980,1753535456933,-976.91,0.00023283,2]
[375124982,1753535456942,-460.0,0.00023283,2]
[375124984,1753535456951,-594.16,0.00023283,2]
[375124986,1753535456960,-617.3,0.00023283,2]
[375124988,1753535456970,-549.7,0.00023284,2]
[375124989,1753535456980,-460.0,0.00023284,2]
[375124991,1753535456990,-663.51,0.00023284,2]
[375124994,1753535457000,-460.0,0.00023284,2]
[375124995,1753535457010,-651.27,0.00023284,2]
[375124997,1753535457020,-522.78,0.00023284,2]
[375125000,1753535457031,-460.0,0.00023284,2]
[375125002,1753535457041,-460.0,0.00023285,2]
[375125003,1753535457050,-609.67,0.00023285,2]
[375125006,1753535457060,-460.0,0.00023285,2]
[375125007,1753535457069,-460.0,0.00023285,2]
[375125010,1753535457079,-588.79,0.00023285,2]
[375125012,1753535457089,-460.0,0.00023285,2]
[375125014,1753535457099,-587.19,0.00023285,2]
[375125016,1753535457109,-1056.07,0.00023285,2]
[375125018,1753535457119,-460.0,0.00023285,2]
[375125020,1753535457129,-5014.67,0.00023285,2]
[375125022,1753535457139,-507.61,0.00023285,2]
[375125024,1753535457149,-1748.22,0.00023285,2]
[375125026,1753535457163,-3082.33,0.00023285,2]
[375125028,1753535457174,-1065.56,0.00023286,2]
[375125030,1753535457183,-202.306236,0.00023286,7]
[375125032,1753535457193,-202.306236,0.00023286,7]
[375125034,1753535457203,-1505.2,0.00023286,2]
[375125036,1753535457213,-2131.83,0.00023286,2]
[375125038,1753535457223,-460.0,0.00023286,2]
[375125040,1753535457232,-829.15,0.00023286,2]
[375125042,1753535457242,-1514.66,0.00023286,2]
[375125044,1753535457251,-2640.4,0.00023286,2]
[375125046,1753535457260,-460.0,0.00023287,2]
[375125048,1753535457271,-460.0,0.00023287,2]
[375125050,1753535457280,-460.0,0.00023287,2]
[375125052,1753535457289,-472.65,0.00023287,2]
[375125054,1753535457300,-2088.78,0.00023287,2]
[375125056,1753535457309,-460.0,0.00023287,2]
[375125058,1753535457319,-460.0,0.00023287,2]
[375125060,1753535457328,-151.0,0.00023288,2]
[375125062,1753535457338,-678.0,0.00023288,2]
[375125064,1753535457348,-151.0,0.00023288,2]
[375125066,1753535457357,-151.0,0.00023288,2]
[375125068,1753535457366,-151.92336044,0.00023288,2]
[375125070,1753535457377,-151.0,0.00023288,2]
[375125072,1753535457386,-151.05000522,0.00023288,2]
[375125074,1753535457396,-151.0,0.00023288,2]
[375125076,1753535457406,-151.0,0.00023288,2]
[375125078,1753535457415,-540.0,0.00023288,2]
[375125080,1753535457427,-151.0,0.00023288,2]
[375125082,1753535457437,-151.0,0.00023288,2]
[375125084,1753535457446,-151.0,0.00023288,2]
[375125086,1753535457456,-151.0,0.00023288,2]
[375125088,1753535457466,-151.0,0.00023288,2]
[375125090,1753535457475,-151.28167398,0.00023288,2]
[375125092,1753535457485,-151.0,0.00023288,2]
[375125094,1753535457494,-151.0,0.00023288,2]
[375125096,1753535457503,-151.0,0.00023288,2]
[375125098,1753535457513,-4695.47,0.000233,7]
[375125100,1753535457522,-1558.17,0.000233,7]
[375125102,1753535457532,-151.0,0.000233,7]
[375125111,1753535457541,-151.0,0.000233,7]
[375125113,1753535457617,-643.0,0.000233,2]
[375125115,1753535457627,-214.8008262,0.000233,7]
[375125117,1753535457636,-151.0,0.000233,7]
[375125119,1753535457646,-312.16666667,0.000233,7]
[375125121,1753535457655,-45954.63,0.000233,2]
[375125123,1753535457665,-511.24,0.00023303,7]
[375125125,1753535457675,-660.0,0.00023319,2]
[375125127,1753535457685,-409.0,0.00023363,2]
[375125129,1753535457695,-566.56942138,0.00023365,2]
[375125131,1753535457704,-309.27,0.00023378,2]
[375125133,1753535457715,-409.0,0.00023379,2]
[375125135,1753535457725,-240.4,0.00023395,6]
[375125137,1753535457735,-511.24,0.00023403,4]
[375125139,1753535457745,-612.3,0.00023419,2]
[375125141,1753535457756,-500.0,0.00023424,2]
[375125143,1753535457766,-151.0,0.000235,8]
[375125145,1753535457775,-511.3,0.00023503,6]
[375125147,1753535457786,-3916.90177952,0.00023509,2]
[375125149,1753535457795,-409.0,0.00023522,2]
[375125151,1753535457804,-152.0,0.00023533,3]
[375125153,1753535457814,-152.0,0.00023533,3]
[375125156,1753535457825,-152.0,0.00023533,3]
[375125158,1753535457835,-152.0,0.00023533,3]
[375125160,1753535457844,-152.0,0.00023533,3]
[375125162,1753535457854,-152.0,0.00023533,3]
[375125164,1753535457865,-152.0,0.00023533,3]
[375125166,1753535457875,-152.0,0.00023533,3]
[375125168,1753535457886,-152.0,0.00023533,3]
[375125170,1753535457896,-152.0,0.00023533,3]
[375125172,1753535457906,-260.60872757,0.00023533,3]
[375125174,1753535457915,-5898.85,0.00023555,2]
[375125176,1753535457924,-460.0,0.00023555,2]
[375125178,1753535457934,-460.0,0.00023555,2]
[375125180,1753535457943,-460.0,0.00023555,2]
[375125182,1753535457953,-654.15,0.00023556,2]
[375125184,1753535457962,-460.0,0.00023556,2]
[375125186,1753535457971,-2404.1,0.00023556,2]
[375125188,1753535457980,-460.0,0.00023556,2]
[375125190,1753535457989,-1400.9,0.00023556,2]
[375125191,1753535457999,-659.55,0.00023556,2]
[375125194,1753535458008,-574.94,0.00023556,2]
[375125195,1753535458018,-820.48,0.00023556,2]
[375125198,1753535458027,-2915.78,0.00023557,2]
[375125200,1753535458037,-460.0,0.00023557,2]
[375125202,1753535458047,-460.0,0.00023557,2]
[375125203,1753535458058,-460.0,0.00023557,2]
[375125205,1753535458068,-647.44,0.00023557,2]
[375125207,1753535458077,-976.91,0.00023557,2]
[375125209,1753535458087,-460.0,0.00023557,2]
[375125211,1753535458097,-594.16,0.00023557,2]
[375125213,1753535458107,-549.7,0.00023558,2]
[375125215,1753535458116,-460.0,0.00023558,2]
[375125217,1753535458126,-663.51,0.00023558,2]
[375125219,1753535458135,-390.43863774,0.00023558,2]
[375125221,1753535458144,-651.27,0.00023558,2]
[375125223,1753535458153,-522.78,0.00023558,2]
[375125225,1753535458163,-460.0,0.00023558,2]
[375125227,1753535458173,-498.15776806,0.00023559,2]
[375125230,1753535458183,-609.67,0.00023559,2]
[375125232,1753535458192,-460.0,0.00023559,2]
[375125233,1753535458201,-354.41743296,0.00023559,2]
[375125235,1753535458211,-588.79,0.00023559,2]
[375125238,1753535458220,-460.0,0.00023559,2]
[375125239,1753535458230,-587.19,0.00023559,2]
[375125242,1753535458239,-1056.07,0.00023559,2]
[375125244,1753535458249,-460.0,0.00023559,2]
[375125246,1753535458258,-5014.67,0.00023559,2]
[375125248,1753535458267,-507.61,0.00023559,2]
[375125250,1753535458277,-1748.22,0.00023559,2]
[375125252,1753535458287,-3082.33,0.00023559,2]
[375125254,1753535458296,-1065.56,0.0002356,2]
[375125256,1753535458306,-1505.2,0.0002356,2]
[375125258,1753535458315,-2131.83,0.0002356,2]
[375125260,1753535458325,-460.0,0.0002356,2]
[375125262,1753535458335,-829.15,0.0002356,2]
[375125264,1753535458344,-1514.66,0.0002356,2]
[375125266,1753535458354,-2640.4,0.0002356,2]
[375125268,1753535458363,-151.0,0.00023561,7]
[375125270,1753535458373,-460.0,0.00023561,2]
[375125272,1753535458382,-460.0,0.00023561,2]
[375125274,1753535458391,-460.0,0.00023561,2]
[375125276,1753535458401,-472.65,0.00023561,2]
[375125278,1753535458411,-2088.78,0.00023561,2]
[375125280,1753535458424,-460.0,0.00023561,2]
[375125282,1753535458433,-460.0,0.00023561,2]
[375125284,1753535458442,-678.0,0.00023562,2]
[375125286,1753535458452,-198.0,0.00023562,2]
[375125288,1753535458462,-151.0,0.00023562,2]
[375125290,1753535458471,-540.0,0.00023562,2]
[375125292,1753535458480,-151.0,0.00023562,2]
[375125294,1753535458490,-447.763606,0.00023562,7]
[375125296,1753535458501,-447.763606,0.00023562,7]
[375125298,1753535458511,-409.0,0.00023582,2]
[375125300,1753535458520,-409.0,0.00023584,2]
[375125302,1753535458530,-800.0,0.00023584,2]
[375125304,1753535458540,-1000.0,0.000236,2]
[375125306,1753535458549,-4000.0,0.00023608,2]
[375125308,1753535458559,-172.0,0.00023609,3]
[375125310,1753535458568,-174.72074456,0.00023609,3]
[375125312,1753535458578,-160.0,0.00023609,3]
[375125314,1753535458587,-160.0,0.00023609,3]
[375125316,1753535458597,-160.0,0.00023609,3]
[375125318,1753535458608,-152.0,0.00023609,3]
[375125320,1753535458618,-160.0,0.00023609,3]
[375125322,1753535458627,-152.0,0.00023609,3]
[375125324,1753535458636,-160.0,0.00023609,3]
[375125326,1753535458646,-152.0,0.00023609,3]
[375125328,1753535458656,-160.0,0.00023609,3]
[375125330,1753535458667,-152.0,0.00023609,3]
[375125332,1753535458676,-162.30786059,0.00023609,3]
[375125334,1753535458686,-1754.0,0.00023609,3]
[375125336,1753535458695,-152.0,0.00023609,3]
[375125338,1753535458705,-152.0,0.00023609,3]
[375125340,1753535458715,-152.0,0.00023609,3]
[375125342,1753535458725,-1754.0,0.00023609,3]
[375125344,1753535458735,-152.0,0.00023609,3]
[375125346,1753535458744,-154.0,0.00023609,3]
[375125348,1753535458754,-1754.0,0.00023609,3]
[375125350,1753535458763,-152.0,0.00023609,3]
[375125359,1753535458835,-156.29473911,0.00023609,3]
[375125361,1753535458846,-1754.0,0.00023609,3]
[375125363,1753535458856,-152.0,0.00023609,3]
[375125365,1753535458865,-152.0,0.00023609,3]
[375125367,1753535458875,-152.0,0.00023609,3]
[375125369,1753535458884,-1754.0,0.00023609,3]
[375125371,1753535458894,-1754.0,0.00023609,3]
[375125373,1753535458903,-1754.0,0.00023609,3]
[375125375,1753535458913,-1754.0,0.00023609,3]
[375125377,1753535458922,-1754.0,0.00023609,3]
[375125379,1753535458932,-1754.0,0.00023609,3]
[375125381,1753535458942,-1754.0,0.00023609,3]
[375125383,1753535458951,-1754.0,0.00023609,3]
[375125385,1753535458961,-1754.0,0.00023609,3]
[375125387,1753535458971,-1754.0,0.00023609,3]
[375125389,1753535458980,-1754.0,0.00023609,3]
[375125391,1753535458990,-1754.0,0.00023609,3]